{"text_format":"1","workbook":"xlsx","n_sheets":12,"sheets":["Instrukcija","Sakuma lapa","Rezidenti","Nerezidenti","Zinas par DN","VSAOI data","Pivot data","Pivot","Kopsavilkums","Format","Kodi","Tiesibas"],"not_rendered":{"charts":0,"images":2,"macros":1,"external_links":0,"defined_names":14,"comments":4,"pivot_tables":1},"unopened":[],"bounds":{"document_bytes":16777216,"sheet_cells":100000,"rows_first":2000,"rows_last":500,"rows_between":2000,"halvings":0,"cell_chars":16384,"cell_head_chars":4096},"cells_cut":0,"cells_raw":0,"read":"whole","date_system":"1900"}

{"sheet":"Instrukcija","index":0,"n_rows":32,"n_cols":4,"rows_kept":32,"cut":false,"hidden":false,"merged":[[5,1,5,15],[31,1,31,15],[1,2,1,8],[2,3,2,9],[3,3,3,9]]}
[]
[null,"Apraksts:","https://exceldarbariki.mozello.lv/produkti/izmaksasfp/"]
[null,"Kā ieslēgt makrosus:",null,"https://exceldarbariki.mozello.lv/produkti/instrukcijas/"]
[null,"Kā atbloķēt makrosus:",null,"https://exceldarbariki.mozello.lv/produkti/ka-atbloket-makrosus/"]
[]
[null,"Paziņojums par fiziskajām personām izmaksātajām summām (kopsavilkums) - jāielādē gan pirmreizējas, gan precizētas deklarācijas"]
[]
[]
[]
[]
[]
[]
[]
[]
[]
[]
[]
[]
[]
[]
[]
[]
[]
[]
[]
[]
[]
[]
[]
[]
[]
[null,"IeIeN pārskats par izmaksām nerezidentiem - jāizvēlas tikai aktuālas deklarācijas"]

{"sheet":"Sakuma lapa","index":1,"n_rows":18,"n_cols":11,"rows_kept":18,"cut":false,"hidden":false,"merged":[[17,8,17,11],[15,1,15,3],[11,1,11,3],[1,7,1,9],[2,7,2,9],[3,1,3,3],[7,1,7,3],[5,9,5,10],[5,7,5,8],[9,7,11,14],[7,7,7,8],[7,9,7,10]]}
[]
[null,null,null,null,null,null,null,"Decimālais atdalītais",null,null,{"$f":"MID(1/10,2,1)","v":"."}]
[null,null,null,null,null,null,null,"Tūkstošu atdalītais"]
[null,"Nolasītais periods"]
[]
[null,null,null,null,null,null,null,"Rezidentu IIN par",null,"deklarācijas mēnesi"]
[]
[null,"Nolasītais periods",null,null,null,null,null,"Nerezidentu IIN par",null,"pirms deklarācijas mēnesi"]
[]
[null,null,null,null,null,null,null,"Ja uz lapas 'VSAOI data' būs kāda persona kas nav uz lapām 'Rezidenti' (Ienāk.veids = 1001,1003,1008) vai 'Nerezid' (Ien.veids = 15,16), tas šūna kolonnā D:D, tiks iekrāsota ar sarkano krāsu. \nNe vienmēr visi iekrāsotie ieraksti ir kļūda, bet caur tiem vienkāršāk identificēt nesakritības."]
[]
[null,"Nolasītais periods"]
[]
[null,null,null,null,null,null,null,"*Visus datus vēlams ielādēt pēc uzradītas secības."]
[null,null,null,null,null,null,null,"*Nerezidentu deklarācijas jāņem ar 1 mēneša nobīdi, jo tās tiek iesniegtas pēc apmaksas datuma"]
[null,"Nolasītais periods"]
[]
[null,"Gads","RegNr.","Tips","Mēnesis","DokId",null,"Uzņemums"]

{"sheet":"Rezidenti","index":2,"n_rows":3,"n_cols":34,"rows_kept":3,"cut":false,"hidden":false,"merged":[[1,28,1,29],[1,32,1,33],[1,30,1,31]]}
[]
[null,"Dati no EDS - Paziņojums par fiziskajām personām izmaksātajām summām (kopsavilkums)",null,null,null,null,null,null,null,null,null,null,null,null,null,null,null,null,null,null,null,null,null,null,null,null,null,null,"Bruto alga",null,"IIN",null,"DN VSAOI"]
[null,"DokId","Ignorēt","Veids","Gads","Mēnesis","Sagatavotājs","Personas kods","Persona\n(1-ais nosaukums)","Persona\n(deklaracijā, ja atšķiras)","Ienāk.\nVeids","Ienākumu \nperiods no","Ienākumu \nperiods līdz","Izmaksas\ndatums","Izmaksas Mēnesis","Ieņēmumi","Neapliekamie Ienākumi","Neapliekamais Minimums","Atvieglojumi Par Apgādājamiem","Atvieglojuma Kods","Atvieglojuma Summa","VSAOI","Iemaksas\nPPF","Apdr. Summa\nar uzkrāšanu","Apdr. Summa\nbez uzkrāšanas","Izdevumi","Nodoklis","Izmaksai","VSAOI\ndata","+/-","VSAOI\ndata","+/-","VSAOI\ndata","+/-"]

{"sheet":"Nerezidenti","index":3,"n_rows":3,"n_cols":26,"rows_kept":3,"cut":false,"hidden":false,"merged":[[1,22,1,23],[1,24,1,25]]}
[]
[null,"Dati no EDS - IeIeN pārskats par izmaksām nerezidentiem",null,null,null,null,null,null,null,null,null,null,null,null,null,null,null,null,null,null,null,null,"Bruto alga (VSAOI data)",null,"DN VSAOI (VSAOI data)"]
[null,"Precizejums","Ignorēt","Gads","Menesis","Sagatavotajs","Tips","Persona","Cits Pers Kods","Lr Nmr \nKods","Dzim Datums","Valsts","Adr Iela","Adr Pilseta","Adr Pasts","Ien \nVeids","Izm \nDatums","Ien. \nSumma","Nod. \nLikme","Nod. \nSumma","Piezimes","ATVK","Iepr. \nmēn.","Tek. \nmēn.","Iepr. \nmēn.","Tek. \nmēn."]

{"sheet":"Zinas par DN","index":4,"n_rows":3,"n_cols":12,"rows_kept":3,"cut":false,"hidden":false,"merged":[[1,1,1,11]]}
[]
[null,"Dati no EDS - Ziņas par darba ņēmējiem"]
[null,"DokId","Precizējums","Sagatavotājs","Personas kods","Persona\n(1-ais nosaukums)","Persona\n(deklaracijā, ja atšķiras)","Datums","Ziņu kods","Profesijas \nkods","Prof. darbības ierobežojums","Valsts \nkods"]

{"sheet":"VSAOI data","index":5,"n_rows":3,"n_cols":47,"rows_kept":3,"cut":false,"hidden":false,"merged":[[1,1,1,23],[1,24,1,29],[1,30,1,37],[1,38,1,41]]}
[null,null,null,null,null,null,null,null,null,null,null,null,null,null,null,null,null,null,null,null,null,null,null,null,null,null,null,null,null,null,null,null,null,null,null,null,null,null,null,null,null,null,null,{"$f":"ROUND(IF(($J1+$L1-$AO1-$AJ1-$AK1-$AL1)*$AF1>0,($J1+$L1-$AO1-$AJ1-$AK1-$AL1)*$AF1,0),2)","v":0},0,{"$f":"($J1+$L1)*$AG1","v":0},{"$f":"($J1+$L1)*$AH1","v":0}]
[null,"Dati no EDS VSAOI deklarācijām",null,null,null,null,null,null,null,null,null,null,null,null,null,null,null,null,null,null,null,null,null,null,"Tehniskie identifikatori",null,null,null,null,null,"Dati no EDS nodokļu grāmatiņām, ņemot verā slimibās lapas B",null,null,null,null,null,null,null,"Revidenta veiktie aprēķini"]
[null,"DokId","Persona,kods,lapa","Uzņēmums","Gads","Menesis","Sagatavotajs","Npk","Persona","Ienakumi","VSAOI","Precizetie ienakumi","Precizētie VSAOI","Ieturētais IIN","RN\npazīme","Riska nodeva","Nostrādātas stundas","Pensiju apdroš.","Solidaritātes nodoklis","Preciz.iem. pens.apdr.","Preciz.aprēķ. \nsolidar.nod.","Status","Darba veids","Lapa","GM","GMS","GML","GMS","DGM","DGMS","Nod.\nGram.","IIN","DN SOC","DD SOC","Apgad.\nSkaits","Par apgād.","Atviegl.","Neapl.\nMin.","IIN","IIN \nstarpība","DN SOC","DD SOC"]

{"sheet":"Pivot data","index":6,"n_rows":4,"n_cols":10,"rows_kept":4,"cut":false,"hidden":true,"merged":[]}
[]
[null,"Avots","PersonasKods","Persona","IenakVeids","Gads","Menesis","Ienemumi","VSAOI","IIN"]
[null,"Rezidenti",null,null,null,null," ",0,0,0]
[null,"Nerezidenti",null,null,null,null," ",0,0,0]

{"sheet":"Pivot","index":7,"n_rows":7,"n_cols":11,"rows_kept":7,"cut":false,"hidden":false,"merged":[]}
[]
[null,"IenakVeids","(All)",null,null,null,null,null,"Rezidenti","Kodi: 1006, 1007","Dati: Ieņēmumi, IIN, VSAOI"]
[null,null,null,null,null,null,null,null,"Nerezidenti","Kodi: 15,16","Dati: Ieņēmumi, VSAOI (piesaistītais)"]
[null,null,null,null,"Values",null,null,null,"VSAOI data","Visi dati","Dati: Ieņēmumi, IIN, VSAOI"]
[null,"PersonasKods","Persona","Avots","Ienemumi ","IIN ","VSAOI "]
[null,"(blank)",null,null,0,0,0]
[null,"Grand Total",null,null,0,0,0]

{"sheet":"Kopsavilkums","index":8,"n_rows":38,"n_cols":12,"rows_kept":38,"cut":false,"hidden":false,"merged":[[1,1,1,8],[28,3,32,3],[33,1,33,4],[24,1,27,1],[24,2,27,2],[24,3,27,3],[28,1,32,1],[28,2,32,2],[22,1,22,8],[16,1,16,4],[3,1,10,1],[11,1,15,1],[11,3,15,3],[11,2,15,2],[3,3,10,3],[3,2,10,2]]}
[null,{"$f":"'Sakuma lapa'!I18","v":0}]
[null,"Kopsavilkums no PFPISK un IINNR deklarācijām, salīdzinot ar VSAOI deklarācijām"]
[null,"Personas","Ienākumu \nperiods no","Ienākumu \nperiods līdz","Ienāk.\nVeids","Ieņēmumi","IIN","DN \nVSAOI","DD\nVSAOI"]
[null,"Rezidenti",{"$f":"IF('Sakuma lapa'!$E$4=0,\"-\",'Sakuma lapa'!$E$4)","v":"-"},{"$f":"IF('Sakuma lapa'!$F$4=0,\"-\",'Sakuma lapa'!$F$4)","v":"-"},1001,{"$f":"SUMIFS(Rezidenti!$P:$P,Rezidenti!$K:$K,$E4,Rezidenti!$C:$C,\"\")-SUMIFS(Rezidenti!$Q:$Q,Rezidenti!$K:$K,$E4,Rezidenti!$C:$C,\"\")","v":0},{"$f":"SUMIFS(Rezidenti!$AA:$AA,Rezidenti!$K:$K,$E4,Rezidenti!$C:$C,\"\")","v":0},{"$f":"SUMIFS(Rezidenti!$V:$V,Rezidenti!$K:$K,$E4,Rezidenti!$C:$C,\"\")","v":0},null,null,{"$f":"VLOOKUP($E4,Kodi!B:C,2,0)","v":"Darba alga "}," "]
[null,null,null,null,1003,{"$f":"SUMIFS(Rezidenti!$P:$P,Rezidenti!$K:$K,$E5,Rezidenti!$C:$C,\"\")-SUMIFS(Rezidenti!$Q:$Q,Rezidenti!$K:$K,$E5,Rezidenti!$C:$C,\"\")","v":0},{"$f":"SUMIFS(Rezidenti!$AA:$AA,Rezidenti!$K:$K,$E5,Rezidenti!$C:$C,\"\")","v":0},{"$f":"SUMIFS(Rezidenti!$V:$V,Rezidenti!$K:$K,$E5,Rezidenti!$C:$C,\"\")","v":0},null,null,{"$f":"VLOOKUP($E5,Kodi!B:C,2,0)","v":"Ienākumi no autoratlīdzības, ko izmaksā kolektīvā pārvaldījuma organizācijas (izņemot autortiesību mantinieku ienākumus)"}," "]
[null,null,null,null,1008,{"$f":"SUMIFS(Rezidenti!$P:$P,Rezidenti!$K:$K,$E6,Rezidenti!$C:$C,\"\")-SUMIFS(Rezidenti!$Q:$Q,Rezidenti!$K:$K,$E6,Rezidenti!$C:$C,\"\")","v":0},{"$f":"SUMIFS(Rezidenti!$AA:$AA,Rezidenti!$K:$K,$E6,Rezidenti!$C:$C,\"\")","v":0},{"$f":"SUMIFS(Rezidenti!$V:$V,Rezidenti!$K:$K,$E6,Rezidenti!$C:$C,\"\")","v":0},null,null,{"$f":"VLOOKUP($E6,Kodi!B:C,2,0)","v":"Ienākumi no uzņēmuma līguma"}," "]
[null,null,null,null,1006,{"$f":"SUMIFS(Rezidenti!$P:$P,Rezidenti!$K:$K,$E7,Rezidenti!$C:$C,\"\")-SUMIFS(Rezidenti!$Q:$Q,Rezidenti!$K:$K,$E7,Rezidenti!$C:$C,\"\")","v":0},{"$f":"SUMIFS(Rezidenti!$AA:$AA,Rezidenti!$K:$K,$E7,Rezidenti!$C:$C,\"\")","v":0},{"$f":"SUMIFS(Rezidenti!$V:$V,Rezidenti!$K:$K,$E7,Rezidenti!$C:$C,\"\")","v":0},null,null,{"$f":"VLOOKUP($E7,Kodi!B:C,2,0)","v":"Ienākumi no nekustamā īpašuma izmantošanas"}," "]
[null,null,null,null,1061,{"$f":"SUMIFS(Rezidenti!$P:$P,Rezidenti!$K:$K,$E8,Rezidenti!$C:$C,\"\")-SUMIFS(Rezidenti!$Q:$Q,Rezidenti!$K:$K,$E8,Rezidenti!$C:$C,\"\")","v":0},{"$f":"SUMIFS(Rezidenti!$AA:$AA,Rezidenti!$K:$K,$E8,Rezidenti!$C:$C,\"\")","v":0},{"$f":"SUMIFS(Rezidenti!$V:$V,Rezidenti!$K:$K,$E8,Rezidenti!$C:$C,\"\")","v":0},null,null,{"$f":"VLOOKUP($E8,Kodi!B:C,2,0)","v":"Ienākums no samaksas par intelektuālo īpašumu vai no literatūras, zinātnes vai mākslas darbu, atklājumu, izgudrojumu un rūpniecisko paraugu autoru un izpildītāju darbu radīšanas, izdošanas, izpildīšanas vai citādas izmantošanas"}," "]
[null,null,null,null,2007,{"$f":"SUMIFS(Rezidenti!$P:$P,Rezidenti!$K:$K,$E9,Rezidenti!$C:$C,\"\")-SUMIFS(Rezidenti!$Q:$Q,Rezidenti!$K:$K,$E9,Rezidenti!$C:$C,\"\")","v":0},{"$f":"SUMIFS(Rezidenti!$AA:$AA,Rezidenti!$K:$K,$E9,Rezidenti!$C:$C,\"\")","v":0},{"$f":"SUMIFS(Rezidenti!$V:$V,Rezidenti!$K:$K,$E9,Rezidenti!$C:$C,\"\")","v":0},null,null,{"$f":"VLOOKUP($E9,Kodi!B:C,2,0)","v":"Ienākumi no citas saimnieciskās darbības"}," "]
[null,null,null,null,2008,{"$f":"SUMIFS(Rezidenti!$P:$P,Rezidenti!$K:$K,$E10,Rezidenti!$C:$C,\"\")-SUMIFS(Rezidenti!$Q:$Q,Rezidenti!$K:$K,$E10,Rezidenti!$C:$C,\"\")","v":0},{"$f":"SUMIFS(Rezidenti!$AA:$AA,Rezidenti!$K:$K,$E10,Rezidenti!$C:$C,\"\")","v":0},{"$f":"SUMIFS(Rezidenti!$V:$V,Rezidenti!$K:$K,$E10,Rezidenti!$C:$C,\"\")","v":0},null,null,{"$f":"VLOOKUP($E10,Kodi!B:C,2,0)","v":"Ienākumi no uzņēmuma līguma"}," "]
[null,null,null,null,"Citi",{"$f":"SUMIFS(Rezidenti!$P:$P,Rezidenti!$C:$C,\"\")-SUM(F4:F10)","v":0},{"$f":"SUMIFS(Rezidenti!$AA:$AA,Rezidenti!$C:$C,\"\")-SUM(G4:G10)","v":0},{"$f":"SUMIFS(Rezidenti!$V:$V,Rezidenti!$C:$C,\"\")-SUM(H4:H10)","v":0}]
[null,"Nerezidenti",{"$f":"IF('Sakuma lapa'!$E$8=0,\"-\",'Sakuma lapa'!$E$8)","v":"-"},{"$f":"IF('Sakuma lapa'!$F$8=0,\"-\",'Sakuma lapa'!$F$8)","v":"-"},7,{"$f":"SUMIFS(Nerezidenti!$R:$R,Nerezidenti!$P:$P,$E12,Nerezidenti!$C:$C,\"\")","v":0},{"$f":"SUMIFS(Nerezidenti!$T:$T,Nerezidenti!$P:$P,$E12,Nerezidenti!$C:$C,\"\")","v":0},{"$f":"SUMIFS(Nerezidenti!$Z:$Z,Nerezidenti!$P:$P,$E12,Nerezidenti!$C:$C,\"\")","v":0},null,null,{"$f":"VLOOKUP($E12,Kodi!F:G,2,0)","v":"Komercdarbības ienākums"}," "]
[null,null,null,null,15,{"$f":"SUMIFS(Nerezidenti!$R:$R,Nerezidenti!$P:$P,$E13,Nerezidenti!$C:$C,\"\")","v":0},{"$f":"SUMIFS(Nerezidenti!$T:$T,Nerezidenti!$P:$P,$E13,Nerezidenti!$C:$C,\"\")","v":0},{"$f":"SUMIFS(Nerezidenti!$Z:$Z,Nerezidenti!$P:$P,$E13,Nerezidenti!$C:$C,\"\")","v":0},null,null,{"$f":"VLOOKUP($E13,Kodi!F:G,2,0)","v":"Darba alga"}," "]
[null,null,null,null,16,{"$f":"SUMIFS(Nerezidenti!$R:$R,Nerezidenti!$P:$P,$E14,Nerezidenti!$C:$C,\"\")","v":0},{"$f":"SUMIFS(Nerezidenti!$T:$T,Nerezidenti!$P:$P,$E14,Nerezidenti!$C:$C,\"\")","v":0},{"$f":"SUMIFS(Nerezidenti!$Z:$Z,Nerezidenti!$P:$P,$E14,Nerezidenti!$C:$C,\"\")","v":0},null,null,{"$f":"VLOOKUP($E14,Kodi!F:G,2,0)","v":"Direktora alga, ienākums no pienākumu pildīšanas uzņemejdarbības padomē vai valdē"}," "]
[null,null,null,null,17,{"$f":"SUMIFS(Nerezidenti!$R:$R,Nerezidenti!$P:$P,$E15,Nerezidenti!$C:$C,\"\")","v":0},{"$f":"SUMIFS(Nerezidenti!$T:$T,Nerezidenti!$P:$P,$E15,Nerezidenti!$C:$C,\"\")","v":0},{"$f":"SUMIFS(Nerezidenti!$Z:$Z,Nerezidenti!$P:$P,$E15,Nerezidenti!$C:$C,\"\")","v":0},null,null,{"$f":"VLOOKUP($E15,Kodi!F:G,2,0)","v":"Ienākums no makslinieku, sportistu vai treneru darbības"}," "]
[null,null,null,null,"Citi",{"$f":"SUMIFS(Nerezidenti!$R:$R,Nerezidenti!$C:$C,\"\")-SUM(F12:F15)","v":0},{"$f":"SUMIFS(Nerezidenti!$T:$T,Nerezidenti!$C:$C,\"\")-SUM(G12:G15)","v":0},{"$f":"SUMIFS(Nerezidenti!$Z:$Z,Nerezidenti!$C:$C,\"\")-SUM(H12:H15)","v":0}]
[null,"Kopā",null,null,null,{"$f":"SUM(F4:F16)","v":0},{"$f":"SUM(G4:G16)","v":0},{"$f":"SUM(H4:H16)","v":0}]
[]
[null,"VSAOI data",{"$f":"IF('Sakuma lapa'!$E$16=0,\"-\",'Sakuma lapa'!$E$16)","v":"-"},{"$f":"IF('Sakuma lapa'!$F$16=0,\"-\",'Sakuma lapa'!$F$16)","v":"-"},"Visi",{"$f":"SUM('VSAOI data'!$J:$J,'VSAOI data'!$L:$L)","v":0},{"$f":"SUMIFS('VSAOI data'!$N:$N,'VSAOI data'!$F:$F,\">=\"&MONTH($C19)+IF('Sakuma lapa'!$J$6=\"deklarācijas mēnesi\",0,1))","v":0},{"$f":"SUM('VSAOI data'!$AO:$AO)","v":0},{"$f":"SUM('VSAOI data'!$AP:$AP)","v":0}]
[]
[null,null,null,null,"Kontrole",{"$f":"ROUND(F19-SUM(F4:F6,F12:F15),2)","v":0},{"$f":"ROUND(G19-SUM(G4:G6),2)","v":0},null,null,null,"Ja kontrole <> 0 tad ir summas nesakritības darbiniekiem starp deklarācijām, vai deklarāciju trūkums."]
[]
[null,"Kopsavilkums no piesaistītiem datiem no VSAOI deklarācijām"]
[null,"Personas","Ienākumu \nperiods no","Ienākumu \nperiods līdz","Ienāk.\nVeids","Ieņēmumi","IIN","DN \nVSAOI","DD\nVSAOI"]
[null,"Rezidenti",{"$f":"IF('Sakuma lapa'!$E$4=0,\"-\",'Sakuma lapa'!$E$4)","v":"-"},{"$f":"IF('Sakuma lapa'!$F$4=0,\"-\",'Sakuma lapa'!$F$4)","v":"-"},1001,{"$f":"SUMIFS(Rezidenti!$AC:$AC,Rezidenti!$K:$K,$E25,Rezidenti!$C:$C,\"\")","v":0},{"$f":"SUMIFS(Rezidenti!$AE:$AE,Rezidenti!$K:$K,$E25,Rezidenti!$C:$C,\"\")","v":0},{"$f":"SUMIFS(Rezidenti!$AG:$AG,Rezidenti!$K:$K,$E25,Rezidenti!$C:$C,\"\")","v":0}]
[null,null,null,null,1003,{"$f":"SUMIFS(Rezidenti!$AC:$AC,Rezidenti!$K:$K,$E26,Rezidenti!$C:$C,\"\")","v":0},{"$f":"SUMIFS(Rezidenti!$AE:$AE,Rezidenti!$K:$K,$E26,Rezidenti!$C:$C,\"\")","v":0},{"$f":"SUMIFS(Rezidenti!$AG:$AG,Rezidenti!$K:$K,$E26,Rezidenti!$C:$C,\"\")","v":0}]
[null,null,null,null,1008,{"$f":"SUMIFS(Rezidenti!$AC:$AC,Rezidenti!$K:$K,$E27,Rezidenti!$C:$C,\"\")","v":0},{"$f":"SUMIFS(Rezidenti!$AE:$AE,Rezidenti!$K:$K,$E27,Rezidenti!$C:$C,\"\")","v":0},{"$f":"SUMIFS(Rezidenti!$AG:$AG,Rezidenti!$K:$K,$E27,Rezidenti!$C:$C,\"\")","v":0}]
[null,null,null,null,"Citi",{"$f":"SUMIFS(Rezidenti!$AC:$AC,Rezidenti!$C:$C,\"\")-SUM(F25:F27)","v":0},{"$f":"SUMIFS(Rezidenti!$AE:$AE,Rezidenti!$C:$C,\"\")-SUM(G25:G27)","v":0},{"$f":"SUMIFS(Rezidenti!$AG:$AG,Rezidenti!$C:$C,\"\")-SUM(H25:H27)","v":0}]
[null,"Nerezidenti",{"$f":"IF('Sakuma lapa'!$E$8=0,\"-\",'Sakuma lapa'!$E$8)","v":"-"},{"$f":"IF('Sakuma lapa'!$F$8=0,\"-\",'Sakuma lapa'!$F$8)","v":"-"},7,{"$f":"SUMIFS(Nerezidenti!$W:$W,Nerezidenti!$P:$P,$E29,Nerezidenti!$C:$C,\"\")","v":0},null,{"$f":"SUMIFS(Nerezidenti!$Z:$Z,Nerezidenti!$P:$P,$E29,Nerezidenti!$C:$C,\"\")","v":0}]
[null,null,null,null,15,{"$f":"SUMIFS(Nerezidenti!$W:$W,Nerezidenti!$P:$P,$E30,Nerezidenti!$C:$C,\"\")","v":0},null,{"$f":"SUMIFS(Nerezidenti!$Z:$Z,Nerezidenti!$P:$P,$E30,Nerezidenti!$C:$C,\"\")","v":0}]
[null,null,null,null,16,{"$f":"SUMIFS(Nerezidenti!$W:$W,Nerezidenti!$P:$P,$E31,Nerezidenti!$C:$C,\"\")","v":0},null,{"$f":"SUMIFS(Nerezidenti!$Z:$Z,Nerezidenti!$P:$P,$E31,Nerezidenti!$C:$C,\"\")","v":0}]
[null,null,null,null,17,{"$f":"SUMIFS(Nerezidenti!$W:$W,Nerezidenti!$P:$P,$E32,Nerezidenti!$C:$C,\"\")","v":0},null,{"$f":"SUMIFS(Nerezidenti!$Z:$Z,Nerezidenti!$P:$P,$E32,Nerezidenti!$C:$C,\"\")","v":0}]
[null,null,null,null,"Citi",{"$f":"SUMIFS(Nerezidenti!$W:$W,Nerezidenti!$C:$C,\"\")-SUM(F29:F32)","v":0},null,{"$f":"SUMIFS(Nerezidenti!$Z:$Z,Nerezidenti!$C:$C,\"\")-SUM(H29:H32)","v":0}]
[null,"Kopā",null,null,null,{"$f":"SUM(F25:F33)","v":0},{"$f":"SUM(G25:G33)","v":0},{"$f":"SUM(H25:H33)","v":0}]
[]
[null,"VSAOI data",{"$f":"IF('Sakuma lapa'!$E$16=0,\"-\",'Sakuma lapa'!$E$16)","v":"-"},{"$f":"IF('Sakuma lapa'!$F$16=0,\"-\",'Sakuma lapa'!$F$16)","v":"-"},"Visi",{"$f":"SUM('VSAOI data'!$J:$J,'VSAOI data'!$L:$L)","v":0},{"$f":"SUMIFS('VSAOI data'!$N:$N,'VSAOI data'!$F:$F,\">=\"&MONTH($C19)+IF('Sakuma lapa'!$J$6=\"deklarācijas mēnesi\",0,1))","v":0},{"$f":"SUM('VSAOI data'!$AO:$AO)","v":0},{"$f":"SUM('VSAOI data'!$AP:$AP)","v":0}]
[]
[null,null,null,null,"Kontrole",{"$f":"ROUND(F36-SUM(F25:F27,F29:F32),2)","v":0},{"$f":"ROUND(G36-SUM(G25:G27),2)","v":0},null,null,null,"Ja kontrole <> 0 tad ir darbinieku periodu atšķirības, vai deklarācijas trūkums."]

{"sheet":"Format","index":9,"n_rows":4,"n_cols":34,"rows_kept":4,"cut":false,"hidden":true,"merged":[]}
[]
[null,null,null,null,null,null,null,null,null,null,null,null,null,null,null,null,null,null,null,null,null,null,null,null,null,null,null,{"$f":"P2-SUM(U2:AA2)","v":0},{"$f":"IF(AND(OR(K2=1001,K2=1003,K2=1008),C2=\"\"),SUMIFS('VSAOI data'!$J:$J,'VSAOI data'!$C:$C,\"*\"&$H2&\"*\",'VSAOI data'!$E:$E,$E2,'VSAOI data'!$F:$F,\">=\"&IF(COUNTIFS($C:$C,\"\",$H:$H,$H2)=1,MONTH('Sakuma lapa'!$E$16),MONTH($L2)),'VSAOI data'!$F:$F,\"<=\"&IF(COUNTIFS($C:$C,\"\",$H:$H,$H2)=1,MONTH('Sakuma lapa'!$F$16),MONTH($M2)))\n+SUMIFS('VSAOI data'!$L:$L,'VSAOI data'!$C:$C,\"*\"&$H2&\"*\",'VSAOI data'!$E:$E,$E2,'VSAOI data'!$F:$F,\">=\"&IF(COUNTIFS($C:$C,\"\",$H:$H,$H2)=1,MONTH('Sakuma lapa'!$E$16),MONTH($L2)),'VSAOI data'!$F:$F,\"<=\"&IF(COUNTIFS($C:$C,\"\",$H:$H,$H2)=1,MONTH('Sakuma lapa'!$F$16),MONTH($M2))),0)","v":0},{"$f":"IF(AND(OR(K2=1001,K2=1003,K2=1008),C2=\"\"),IF(ABS(ROUND(AC2-P2++SUM(Q2,W2:Y2),1))>0,ROUND(AC2-P2+SUM(Q2,W2:Y2),2),0),0)","v":0},{"$f":"IF(AND(OR(K2=1001,K2=1003,K2=1008),C2=\"\"),SUMIFS('VSAOI data'!$N:$N,'VSAOI data'!$C:$C,\"*\"&$H2&\"*\",'VSAOI data'!$E:$E,$E2,'VSAOI data'!$F:$F,\">=\"&IF(COUNTIFS($C:$C,\"\",$H:$H,$H2)=1,MONTH('Sakuma lapa'!$E$16),MONTH($L2))+IF(OR('Sakuma lapa'!$J$6=\"deklarācijas mēnesi\",AND(F2=MONTH(L2),F2>1)),0,1),'VSAOI data'!$F:$F,\"<=\"&IF(COUNTIFS($C:$C,\"\",$H:$H,$H2)=1,MONTH('Sakuma lapa'!$F$16),MONTH($M2))+IF(OR('Sakuma lapa'!$J$6=\"deklarācijas mēnesi\",AND(F2=MONTH(L2),F2>1)),0,1)),0)","v":0},{"$f":"IF(AND(OR(K2=1001,K2=1003,K2=1008),C2=\"\"),IF(ABS(ROUND(AE2-AA2,1))>0,ROUND(AE2-AA2,2),0),0)","v":0},{"$f":"IF(AND(OR(K2=1001,K2=1003,K2=1008),C2=\"\"),SUMIFS('VSAOI data'!$AO:$AO,'VSAOI data'!$C:$C,\"*\"&$H2&\"*\",'VSAOI data'!$E:$E,$E2,'VSAOI data'!$F:$F,\">=\"&IF(COUNTIFS($C:$C,\"\",$H:$H,$H2)=1,MONTH('Sakuma lapa'!$E$16),MONTH($L2)),'VSAOI data'!$F:$F,\"<=\"&IF(COUNTIFS($C:$C,\"\",$H:$H,$H2)=1,MONTH('Sakuma lapa'!$F$16),MONTH($M2))),0)","v":0},{"$f":"IF(AND(OR(K2=1001,K2=1003,K2=1008),C2=\"\"),IF(ABS(ROUND(AG2-V2,1))>0,ROUND(AG2-V2,2),0),0)","v":0}]
[]
[null,null,null,null,null,null,null,null,null,null,null,null,null,null,null,null,null,null,null,null,null,null,{"$f":"IF(AND(OR(P4=15,P4=16),C4=\"\"),SUMIFS('VSAOI data'!$J:$J,'VSAOI data'!$C:$C,\"*\"&IF($J4=\"\",$I4,$J4)&\"*\",'VSAOI data'!$E:$E,YEAR(DATE($D4,$E4,0)),'VSAOI data'!$F:$F,MONTH(DATE($D4,$E4,0)))\n+SUMIFS('VSAOI data'!$L:$L,'VSAOI data'!$C:$C,\"*\"&$J4&\"*\",'VSAOI data'!$E:$E,YEAR(DATE($D4,$E4,0)),'VSAOI data'!$F:$F,MONTH(DATE($D4,$E4,0))),0)","v":0},{"$f":"IF(AND(OR(P4=15,P4=16),C4=\"\"),SUMIFS('VSAOI data'!$J:$J,'VSAOI data'!$C:$C,\"*\"&IF($J4=\"\",$I4,$J4)&\"*\",'VSAOI data'!$E:$E,YEAR(DATE($D4,$E4+1,0)),'VSAOI data'!$F:$F,MONTH(DATE($D4,$E4+1,0)))\n+SUMIFS('VSAOI data'!$L:$L,'VSAOI data'!$C:$C,\"*\"&$J4&\"*\",'VSAOI data'!$E:$E,YEAR(DATE($D4,$E4+1,0)),'VSAOI data'!$F:$F,MONTH(DATE($D4,$E4+1,0))),0)","v":0},{"$f":"IF(AND(OR(P4=15,P4=16),C4=\"\"),SUMIFS('VSAOI data'!$K:$K,'VSAOI data'!$C:$C,\"*\"&IF($J4=\"\",$I4,$J4)&\"*\",'VSAOI data'!$E:$E,YEAR(DATE($D4,$E4,0)),'VSAOI data'!$F:$F,MONTH(DATE($D4,$E4,0)))\n+SUMIFS('VSAOI data'!$M:$M,'VSAOI data'!$C:$C,\"*\"&$J4&\"*\",'VSAOI data'!$E:$E,YEAR(DATE($D4,$E4,0)),'VSAOI data'!$F:$F,MONTH(DATE($D4,$E4,0))),0)","v":0},{"$f":"IF(AND(OR(P4=15,P4=16),C4=\"\"),SUMIFS('VSAOI data'!$K:$K,'VSAOI data'!$C:$C,\"*\"&IF($J4=\"\",$I4,$J4)&\"*\",'VSAOI data'!$E:$E,YEAR(DATE($D4,$E4+1,0)),'VSAOI data'!$F:$F,MONTH(DATE($D4,$E4+1,0)))\n+SUMIFS('VSAOI data'!$M:$M,'VSAOI data'!$C:$C,\"*\"&$J4&\"*\",'VSAOI data'!$E:$E,YEAR(DATE($D4,$E4+1,0)),'VSAOI data'!$F:$F,MONTH(DATE($D4,$E4+1,0))),0)","v":0}]

{"sheet":"Kodi","index":10,"n_rows":90,"n_cols":7,"rows_kept":90,"cut":false,"hidden":false,"merged":[[43,1,43,2],[59,1,59,2],[82,1,83,2],[1,1,1,2]]}
[]
[null,"Apliekams ienākums (ietur izmaksas vietā)",null,null,null,"Kods","Apraksts"]
[null,1001,"Darba alga ",null,null,6,"Ienākums no nekustamā īpašuma izmantošanas"]
[null,1003,"Ienākumi no autoratlīdzības, ko izmaksā kolektīvā pārvaldījuma organizācijas (izņemot autortiesību mantinieku ienākumus)",null,null,7,"Komercdarbības ienākums"]
[null,1004,"Ienākumi no metāllūžņu pārdošanas",null,null,10,"Dividendes"]
[null,1006,"Ienākumi no nekustamā īpašuma izmantošanas",null,null,11,"Procenti"]
[null,1007,"Ienākumi no citas saimnieciskās darbības",null,null,12,"Ienākums no intelektuāla īpašuma vai ienākums no kustamā īpašuma izmantošanas"]
[null,1008,"Ienākumi no uzņēmuma līguma",null,null,13,"Ienākums no LR neklustama īpašuma atsavināšanas"]
[null,1009,"Ienākumi no kustamā īpašuma izmantošanas (iznomāšanas, izīrēšanas)",null,null,15,"Darba alga"]
[null,1010,"Ienākumi no kokmateriālu un augoša meža atsavināšanas",null,null,16,"Direktora alga, ienākums no pienākumu pildīšanas uzņemejdarbības padomē vai valdē"]
[null,1011,"Dividendes, dividendēm pielīdzināms ienākums vai nosacītās dividendes",null,null,17,"Ienākums no makslinieku, sportistu vai treneru darbības"]
[null,1012,"Autoratlīdzība, kuru izmaksā autortiesību mantiniekiem un citu tiesību pārņēmējiem",null,null,18,"Pensijas"]
[null,1013,"Ienākums no pārdošanai izgatavotas vai iegādātas lietas (ķermeniskas vai bezķermeniskas) pārdošanas",null,null,19,"Darba samaksa un cita atlīdzība, kuru fiziskajai personai izmaksā valsts vai pašvaldība par tai sniegtajiem pakalpojumiem"]
[null,1014,"No juridiskās personas vai saimnieciskās darbības veicēja saņemtais dāvinājums",null,null,21,"Cits ienākums"]
[null,1016,"Stipendijas"]
[null,1017,"Apdrošināšanas atlīdzība"]
[null,1018,"Ienākumi no pienākumu pildīšanas padomē vai valdē"]
[null,1019,"Procenti"]
[null,1020,"Citi ar nodokli apliekami ienākumi, no kuriem nodokli ietur izmaksas vietā"]
[null,1024,"Ienākums no privātajos pensiju fondos veikto iemaksu ieguldīšanas"]
[null,1026,"Papildpensijas kapitāls, kas veidojies no darba devēja veiktajām iemaksām privātajos pensiju fondos atbilstoši licencētiem pensiju plāniem un izmaksāts pensiju plānu dalībniekiem"]
[null,1033,"Slimības pabalsti (\"B\" daļa)"]
[null,1034,"Vecuma pensija"]
[null,1035,"Invaliditātes pensija"]
[null,1036,"Izdienas pensija"]
[null,1037,"Apgādnieka zaudējuma pensija"]
[null,1039,"Valsts speciālā pensija, invalīdu speciālā pensija"]
[null,1040,"Pārmaksātās valsts sociālās apdrošināšanas iemaksas, kas ir atmaksātas"]
[null,1042,"Pensija, kura izmaksāta saskaņā ar Eiropas Savienības regulām un starpvalstu līgumiem"]
[null,1043,"Ienākumi par personāla nomu"]
[null,1044,"Ienākums no dzīvības apdrošināšanas līguma ar līdzekļu uzkrāšanu"]
[null,1049,"Ienākums uz tiesas nolēmuma vai iestādes lēmuma pamata no valsts budžeta izmaksājamās kompensācijas, kas ir saistīta ar darba attiecībām vai to pārtraukšanu vai kurai ir ienākuma gūšanas raksturs"]
[null,1051,"Ienākums no mūža pensijas apdrošināšanas līgumiem, kas veidojas no apdrošinātāja piešķirtajām gratifikācijām "]
[null,1052,"Pensijai pielīdzināms ienākums"]
[null,1053,"Izložu vai azartspēļu laimests, kas pārsniedz 3000 eiro, izņemot preču un pakalpojumu loteriju laimestus"]
[null,1054,"Ienākumam pielīdzināms aizdevums"]
[null,1061,"Ienākums no samaksas par intelektuālo īpašumu vai no literatūras, zinātnes vai mākslas darbu, atklājumu, izgudrojumu un rūpniecisko paraugu autoru un izpildītāju darbu radīšanas, izdošanas, izpildīšanas vai citādas izmantošanas"]
[null,1064,"Algota darba ienākumi no profesionālā sporta"]
[null,1066,"Ukrainas civiliedzīvotāja darba alga"]
[null,1067,"Darba alga par attālināta darba veikšanu pie ESAO dalībvalstī reģistrēta darba devēja vai ienākums no ESAO dalībvalstī reģistrētas saimnieciskās darbības"]
[]
[]
[]
[null,"Apliekams ienākums  (neietur izmaksas vietā)"]
[null,2006,"Ienākumi no nekustamā īpašuma izmantošanas"]
[null,2007,"Ienākumi no citas saimnieciskās darbības"]
[null,2008,"Ienākumi no uzņēmuma līguma"]
[null,2009,"Ienākumi no kustamā īpašuma izmantošanas (iznomāšanas, izīrēšanas)"]
[null,2010,"Ienākumi no kokmateriālu un augoša meža atsavināšanas"]
[null,2015,"Ienākums no nekustamā īpašuma atsavināšanas"]
[null,2019,"Procenti"]
[null,2021,"Citi ar nodokli apliekami ienākumi, no kuriem nodokli neietur izmaksas vietā"]
[null,2027,"Ienākums no ieguldījumu fondu ieguldījumu apliecību pārdošanas "]
[null,2030,"Ienākumi, ko saņem likvidācijas vai reorganizācijas gadījumā"]
[null,2046,"Ienākums no kapitāla aktīvu (izņemot nekustamo īpašumu un ieguldījumu fondu apliecību) atsavināšanas "]
[null,2047,"Ienākums, kas gūts parādsaistību samazināšanas vai dzēšanas rezultātā"]
[null,2054,"Ienākumam pielīdzināms aizdevums"]
[null,2055,"Samazinātu aizdevuma procentu maksājumu radītais ienākums"]
[]
[null,"Neapliekams ienākums"]
[null,3005,"Ienākumi no personīgā īpašuma atsavināšanas (izņemot nekustamo īpašumu)"]
[null,3011,"Dividendes, dividendēm pielīdzināms ienākums vai nosacītās dividendes"]
[null,3016,"Stipendijas"]
[null,3017,"Apdrošināšanas atlīdzība"]
[null,3022,"Citi ar nodokli neapliekami ienākumi"]
[null,3024,"Ienākums no privātajos pensiju fondos veikto iemaksu ieguldīšanas"]
[null,3030,"Ienākumi, ko saņem likvidācijas vai reorganizācijas gadījumā"]
[null,3038,"Valsts sociālās apdrošināšanas aģentūras izmaksātie pabalsti un atlīdzības"]
[null,"3040  ","Pārmaksātās valsts sociālās apdrošināšanas iemaksas, kas ir atmaksātas"]
[null,3041,"Pārmaksātās valsts sociālās apdrošināšanas brīvprātīgās iemaksas, kas ir atmaksātas"]
[null,3042,"Pensija, kura izmaksāta saskaņā ar Eiropas Savienības regulām un starpvalstu līgumiem"]
[null,3044,"Ienākums no dzīvības apdrošināšanas līguma ar līdzekļu uzkrāšanu"]
[null,3047,"Ienākums, kas gūts parādsaistību samazināšanas vai dzēšanas rezultātā"]
[null,3050,"Algota darba ienākumi par darba pienākumu veikšanu citā Eiropas Savienības dalībvalstī vai Eiropas Ekonomikas zonas valstī, vai valstī, ar kuru Latvijai ir noslēgts un stājies spēkā starptautiskais līgums par nodokļu dubultās uzlikšanas un nodokļu nemaksāšanas novēršanu"]
[null,3057,"Ienākumi, kurus Nodarbinātības valsts aģentūra kvalificējusi par stipendijām vai atlīdzībām"]
[null,3058,"Ienākumi, kas izmaksāti no pašvaldības budžeta kā atlīdzība fiziskajai personai par sociālās aprūpes pakalpojuma – aprūpe mājās – sniegšanu"]
[null,3059,"Darba devēja apmaksātie darba koplīgumā noteiktie darbinieka ēdināšanas un ārstniecības izdevumi, kas nepārsniedz 480 eiro gadā"]
[null,3060,"Laimesti, kuri likumā \"Par iedzīvotāju ienākuma nodokli\" noteikti kā neapliekami"]
[null,3062,"Ienākums no akciju pirkuma tiesību īstenošanas"]
[null,3063,"Attālinātā darba kompensācija"]
[]
[]
[null,"Noteikto normu ietvaros neapliekams ienākums"]
[]
[null,3068,"Darba devēja apmaksātā mācību maksa par darbinieka augstākās izglītības iegūšanu"]
[null,4002,"Ieņēmumi no savas lauksaimniecības produkcijas un ievāktu savvaļas velšu pārdošanas"]
[null,4023,"Palīdzība, kura likumā \"Par iedzīvotāju ienākuma nodokli\" noteikto 3000 eiro ietvaros ir neapliekams ienākums"]
[null,4025,"Konkursos un sacensībās saņemtās mantiskās un naudas balvas (prēmijas)"]
[null,4031,"Palīdzība, kura likumā \"Par iedzīvotāju ienākuma nodokli\" noteikto 2000 eiro ietvaros ir neapliekams ienākums "]
[null,4032,"Palīdzība, kura likumā \"Par iedzīvotāju ienākuma nodokli\" noteikto 1000 eiro ietvaros ir neapliekams ienākums "]

{"sheet":"Tiesibas","index":11,"n_rows":18,"n_cols":15,"rows_kept":18,"cut":false,"hidden":true,"merged":[]}
[]
[null,null,null,"DatumsNo","2025-09-09",null,null,"TisWbName","ThisWbCustId","RN","ActivationDate","CompName/Path","Processor/HddSerialId","PROCESSOR_REVISION","USERNAME"]
[null,null,null,"DatumsLidz","2025-09-20",null,null,"IZMFP",1,25,"2020-09-09","-","-","-","-"]
[null,null,null,"Skaitītājs (demo versijai)"]
[]
[null,null,null,"ThisWbName","IZMFP"]
[null,null,null,"ThisWbCustId",1]
[null,null,null,"Limenis","D"]
[]
[null,null,null,"Nesakonfigurētas tiesības!"]
[null,null,null,"Nesakonfigurētas tiesības versijai!"]
[null,null,null,"Versijas periods ir beidzies!"]
[null,null,null,"Versijas apstrādes uzņēmuma RegNr neatbilst definētam!"]
[null,null,null,"Izvelētais RegNr nav definēts šajā versijā!"]
[null,null,null,"Lūdzu aizpildiet reģistrācijas numuru!"]
[null,null,null,"Versijas Importa/Eksporta skaits sasniedza 20!"]
[null,null,null,"Lūdzu veikt faila aktivāciju uz lapas \"Instrukcija\"!"]
[null,null,null,"Fails jau ir aktivizēts šim datoram un lietotājam!"]